[Event "44th Chess Olympiad Open 2022"]
[Site "Chennai"]
[Date "2022.08.03"]
[Round "6.25"]
[White "Dobrovoljc, Vid"]
[Black "Mendoza, Rodrigo"]
[Result "1-0"]
[WhiteElo "2398"]
[BlackElo "2215"]
[Annotator "TA"]
[PlyCount "77"]
[EventDate "2022.??.??"]
[TimeControl "60"]

{[%evp 11,77,23,40,33,34,38,29,9,36,10,15,0,2,5,58,16,18,0,14,-18,57,0,59,48,
72,8,92,79,90,93,92,70,100,101,108,81,104,106,105,93,90,87,87,113,172,155,173,
149,146,157,149,128,127,0,177,152,269,269,281,251,291,291,407,405,401,381,383,
301]} 1. e4 {[%emt 0:00:25]} c6 {[%emt 0:00:00]} 2. d4 {[%emt 0:00:16]} d5 {
[%emt 0:00:02]} 3. e5 {[%emt 0:00:54]} Bf5 {[%emt 0:00:05]} 4. Nf3 {[%emt 0:00:
00]} e6 {[%emt 0:00:06]} 5. Be2 {[%emt 0:02:53]} Nd7 {[%emt 0:05:05]} 6. O-O {
[%emt 0:01:42]} Bg6 {[%emt 0:02:22]} 7. Nbd2 {[%emt 0:01:38] B12: Caro-Kann:
Advance Variation.} Nh6 {[%emt 0:00:21]} 8. Nb3 {[%emt 0:01:16]} Nf5 {[%emt 0:
00:00]} 9. a4 {[%emt 0:02:13] White has an edge.} a6 {[%emt 0:01:14]} 10. Bd2 {
[%emt 0:25:46]} c5 {[%emt 0:05:35] [#]} 11. dxc5 $146 {[%emt 0:04:33]} ({
Predecessor:} 11. c4 dxc4 12. Bxc4 cxd4 13. Re1 Be7 14. a5 O-O 15. Bd3 Nc5 16.
Nxc5 Bxc5 17. b4 {0-1 (71) Can,M (2105)-Torres Hernandez,L (1884) Chess.com
INT 2021}) 11... Nxc5 {[%emt 0:00:06]} 12. c4 {[%emt 0:00:09]} Rc8 {[%emt 0:00:
00]} (12... dxc4 $11 13. Bxc4 Be7) 13. Rc1 {[%emt 0:07:27] [#] aiming for cxd5.
} d4 {[%emt 0:21:13]} 14. Nxc5 {[%emt 0:07:02]} Bxc5 {[%emt 0:01:47]} 15. Ne1 {
[%emt 0:04:53]} Ne7 {[%emt 0:04:46]} (15... a5 $11) 16. Nd3 {[%emt 0:01:09]} (
16. b4 $14 Bb6 17. a5) 16... Ba7 {[%emt 0:00:26]} ({Black should try} 16... a5
$11) 17. Re1 {[%emt 0:07:32]} O-O {[%emt 0:05:50]} 18. Bf1 {[%emt 0:01:35]} (
18. a5 $16) 18... Qd7 {[%emt 0:02:38]} (18... a5 $1 $11 {keeps the balance.})
19. b4 {[%emt 0:04:06][%cal Yb2b4,Yb4b5]} Rc7 {[%emt 0:07:25]} 20. Qb3 {
[%emt 0:06:04]} h6 {[%emt 0:08:06]} 21. b5 {[%emt 0:13:05]} Bxd3 {[%emt 0:00:
00]} 22. Bxd3 {[%emt 0:00:00] [#] b6 is the strong threat.} Bc5 {[%emt 0:00:01]
} 23. Be4 {[%emt 0:00:00]} f5 {[%emt 0:02:26]} 24. exf6 $1 {[%emt 0:00:13]}
Rxf6 {[%emt 0:00:01][%cal Yd4d3]} 25. Qd3 {[%emt 0:00:21]} Rc8 {[%emt 0:01:55]}
26. Re2 {[%emt 0:01:13]} Rcf8 {[%emt 0:04:22]} 27. g3 {[%emt 0:01:08]} Ra8 {
[%emt 0:00:22]} (27... b6 $16 {was worth a try.}) 28. a5 $18 {[%emt 0:01:57]}
Raf8 {[%emt 0:00:55]} 29. Rb1 {[%emt 0:01:41]} Nf5 {[%emt 0:01:14]} 30. Bg2 {
[%emt 0:02:17] This bishop pair is nice.} Nd6 {[%emt 0:00:50]} 31. Bf4 {
[%emt 0:00:22]} Nf7 {[%emt 0:02:30]} 32. Bd2 {[%emt 0:01:22] 0x0.
0016811165cedp-1022s more active pieces.} (32. h4 $16) 32... Qd6 $2 {[%emt 0:
00:00]} (32... Nd6 $1 $11 {and Black has nothing to worry.}) 33. Rbe1 {[%emt 0:
00:00]} axb5 {[%emt 0:03:25]} (33... b6 $16 34. f4 (34. bxa6 bxa5 35. a7 Bxa7
$16) 34... bxa5) 34. cxb5 {[%emt 0:00:10]} Qd7 {[%emt 0:02:59]} 35. Rc1 {
[%emt 0:00:29]} b6 {[%emt 0:00:45]} 36. a6 {[%emt 0:00:27]} e5 {[%emt 0:00:42]}
37. Ra1 {[%emt 0:00:44] And now a7 would win. White is winning.} Qa7 {[%emt 0:
00:00]} 38. Kh1 {[%emt 0:00:51]} Nd6 {[%emt 0:00:23]} 39. f4 {[%emt 0:00:09]
Weighted Error Value: White=0.18 (very precise) /Black=0.34} 1-0

[Event "44th Chess Olympiad Open 2022"]
[Site "Chennai"]
[Date "2022.08.03"]
[Round "6.25"]
[White "Gemy, Jose Daniel"]
[Black "Sebenik, Matej"]
[Result "1/2-1/2"]
[WhiteElo "2373"]
[BlackElo "2512"]
[Annotator "TA"]
[PlyCount "41"]
[EventDate "2022.??.??"]
[TimeControl "60"]

{[%evp 12,41,33,33,31,23,21,25,34,24,34,21,31,0,0,0,10,0,0,0,0,0,14,0,13,0,0,0,
0,-7,0,0]} 1. e4 {[%emt 0:00:04]} e6 {[%emt 0:00:16]} 2. d4 {[%emt 0:00:09]} d5
{[%emt 0:00:08]} 3. Nd2 {[%emt 0:00:05]} c5 {[%emt 0:00:24]} 4. Ngf3 {[%emt 0:
00:00]} Nc6 {[%emt 0:01:00]} 5. exd5 {[%emt 0:00:11]} exd5 {[%emt 0:00:07]} 6.
Bb5 {[%emt 0:00:05]} Qe7+ $1 {[%emt 0:00:20] is recently more successful than
6...Bd6.} 7. Be2 {[%emt 0:00:06]} Qc7 {[%emt 0:00:30] C09: French Tarrasch: 3..
.c5 4 exd5 exd5 5 Ngf3 Nc6.} 8. O-O {[%emt 0:00:08]} Nf6 {[%emt 0:00:13]} 9.
dxc5 {[%emt 0:00:20]} Bxc5 {[%emt 0:00:10] White has an edge.} 10. Nb3 {
[%emt 0:00:04]} Be7 {[%emt 0:00:13]} 11. Bg5 {[%emt 0:01:35]} Bf5 {[%emt 0:16:
21] [#]} 12. Nbd4 $146 {[%emt 0:17:40]} ({Predecessor:} 12. Bd3 Be4 13. Re1 O-O
14. c3 Rad8 15. Qe2 h6 16. Bxf6 Bxd3 17. Qxd3 Bxf6 18. g3 {½-½ (40) Garcia,
F-Cravens,D (2231) IECC email 2015}) 12... Be4 {[%emt 0:00:00] The position is
equal.} 13. c3 {[%emt 0:00:34]} O-O {[%emt 0:00:00]} 14. Bh4 {[%emt 0:03:17]}
Rfe8 {[%emt 0:00:00]} 15. Re1 {[%emt 0:00:14]} a6 {[%emt 0:00:00]} 16. Bg3 {
[%emt 0:05:21]} Qb6 {[%emt 0:00:00]} 17. Qb3 {[%emt 0:00:00]} Qa7 {[%emt 0:00:
00]} 18. Qa4 {[%emt 0:10:22]} Qb6 {[%emt 0:21:33]} 19. Qb3 {[%emt 0:00:52]} Qa7
{[%emt 0:16:00]} 20. Qa4 {[%emt 0:08:22]} Qb6 {[%emt 0:06:26]} 21. Qb3 {
[%emt 0:00:02] Not much happened in this game. Weighted Error Value: White=0.
05 (flawless) /Black=0.03 (flawless)} 1/2-1/2

[Event "44th Chess Olympiad Open 2022"]
[Site "Chennai"]
[Date "2022.08.03"]
[Round "6.25"]
[White "Pinto, Daniel"]
[Black "Markoja, Boris"]
[Result "0-1"]
[WhiteElo "2249"]
[BlackElo "2452"]
[Annotator "TA"]
[PlyCount "138"]
[EventDate "2022.??.??"]
[TimeControl "60"]

{[%evp 17,138,-5,0,0,15,15,10,0,0,0,0,0,-3,-44,-34,-64,-36,-59,-3,-65,-72,-140,
-135,-279,-272,-281,-266,-261,-256,-343,-179,-158,-104,-227,-217,-214,-141,
-305,-221,-226,-222,-210,-215,-223,-217,-207,-212,-210,-192,-365,-361,-456,
-456,-419,-300,-375,-373,-287,-279,-262,-239,-361,-354,-489,-350,-500,-456,
-456,-456,-456,-456,-456,-422,-1006,-724,-1006,-1006,-1087,-1044,-896,-537,
-516,-503,-524,-346,-346,-339,-339,-339,-332,-332,-287,-225,-252,-225,-250,
-241,-403,-307,-493,-424,-592,-798,-781,-701,-771,-697,-647,-585,-546,-410,
-410,-410,-29969,-29972,-29977,-29977,-29974,-29948,-29954,-6769,-5045,-1247]} 
1. e4 {[%emt 0:00:32]} e6 {[%emt 0:00:07]} 2. d4 {[%emt 0:00:14]} d5 {[%emt 0:
00:00]} 3. Nd2 {[%emt 0:00:20]} c5 {[%emt 0:00:23]} 4. Ngf3 {[%emt 0:00:18]}
cxd4 {[%emt 0:00:35]} 5. Nxd4 {[%emt 0:00:10]} Nc6 {[%emt 0:00:54]} 6. Bb5 {
[%emt 0:00:57]} Bd7 {[%emt 0:00:31]} 7. Nxc6 {[%emt 0:00:32]} bxc6 {[%emt 0:00:
00]} 8. Bd3 {[%emt 0:01:58]} Bd6 {[%emt 0:00:21]} 9. O-O {[%emt 0:07:20]} Qc7 {
[%emt 0:01:30]} 10. h3 {[%emt 0:01:13] C07: French Tarrasch: 3...c5, 4 Ngf3
and 4 exd5 Qxd5.} Ne7 {[%emt 0:10:32]} 11. c4 {[%emt 0:01:14]} O-O {[%emt 0:00:
00]} 12. Nf3 {[%emt 0:14:55] The position is equal.} dxe4 {[%emt 0:05:08]} 13.
Bxe4 {[%emt 0:00:09]} f5 {[%emt 0:00:13]} 14. Bc2 {[%emt 0:00:22]} c5 {[%emt 0:
00:00] [#]} 15. Bg5 $146 {[%emt 0:10:05]} (15. Bd2 $5 {[%cal Rd2a5]}) ({
Predecessor:} 15. Re1 Rae8 16. b4 cxb4 17. Bb2 Ng6 18. c5 Bxc5 19. Bb3 Rd8 20.
Rc1 Qb6 21. Rxc5 Qxc5 22. Ng5 h6 23. Rxe6 Bxe6 24. Bxe6+ Kh8 25. Qh5 Ne5 26.
Bb3 Rd2 {0-1 (26) Barrientos Chavarriaga,S (2481)-Kaufman,R (2300) Alajuela
2014}) 15... Rae8 {[%emt 0:04:37]} 16. Qd2 {[%emt 0:06:07]} Nc8 {[%emt 0:13:37]
} 17. Rad1 {[%emt 0:28:37][%cal Yg5f4]} e5 {[%emt 0:05:44] Inhibits Bf4.} ({
Black should try} 17... Bc6 $15) 18. Ne1 {[%emt 0:01:58]} ({Don't blunder} 18.
Qd5+ $2 Be6 19. Qd2 e4 $19) (18. Nh4 $11) 18... h6 {[%emt 0:07:28]} 19. Bh4 {
[%emt 0:01:45]} (19. Be3 $142) 19... Bc6 {[%emt 0:06:29]} 20. f3 {[%emt 0:00:
00]} (20. f4 $17) 20... e4 $19 {[%emt 0:00:54]} 21. fxe4 {[%emt 0:07:03]} fxe4
{[%emt 0:03:35]} 22. Rxf8+ {[%emt 0:02:45]} Rxf8 {[%emt 0:00:06]} 23. Qe2 {
[%emt 0:03:07]} Qf7 {[%emt 0:04:26]} (23... Bh2+ $142 24. Kh1 Bg3 25. Bxg3 Qxg3
26. Bxe4 Bxe4) 24. Bf2 {[%emt 0:01:01]} Qf4 {[%emt 0:03:47]} (24... Qf5 $142
25. Qe3 Qf6) 25. Rxd6 {[%emt 0:01:38]} Nxd6 {[%emt 0:06:43]} ({Worse is} 25...
Qxd6 26. Qe3) 26. Bxc5 {[%emt 0:00:10]} a5 {[%emt 0:00:45] And now ...Rf7
would win.} 27. a3 $2 {[%emt 0:07:06]} (27. b4 $17) 27... a4 {[%emt 0:01:19]}
28. b4 {[%emt 0:00:06]} axb3 $1 {[%emt 0:00:29] Dancing on a razor blade.} 29.
Bxb3 {[%emt 0:00:00] aiming for Bxd6.} Kh7 {[%emt 0:01:04]} 30. Nc2 {[%emt 0:
00:00]} Rb8 {[%emt 0:02:26]} 31. Nb4 {[%emt 0:01:00] [#]} Nf5 $1 {[%emt 0:00:
00]} 32. Bc2 {[%emt 0:00:31]} Bb7 {[%emt 0:00:39]} 33. Qg4 {[%emt 0:00:45]} (
33. Bf2) 33... Qe5 {[%emt 0:01:05]} 34. Bf2 {[%emt 0:00:31]} Ra8 {[%emt 0:00:
00]} 35. a4 {[%emt 0:00:31]} Re8 {[%emt 0:01:58] Threatens to win with ...Rc8.}
36. c5 {[%emt 0:00:20]} Bc8 {[%emt 0:00:12]} 37. Qd1 {[%emt 0:00:36]} e3 {
[%emt 0:00:17]} 38. Be1 {[%emt 0:00:23]} Qxc5 {[%emt 0:00:14]} 39. Qf3 {
[%emt 0:00:33]} (39. Qd5 $142 Qxd5 40. Nxd5) 39... Kh8 {[%emt 0:01:38]} 40. Bd3
{[%emt 0:00:37]} Nd4 {[%emt 0:03:16]} 41. Qf7 {[%emt 0:02:50]} (41. Qd5 $142
Qxd5 42. Nxd5) 41... Rf8 {[%emt 0:02:39]} 42. Qd5 {[%emt 0:01:26]} Qc1 {
[%emt 0:15:15]} 43. Qxd4 {[%emt 0:01:18] Strongly threatening Nc2.} Qxe1+ {
[%emt 0:00:08]} 44. Kh2 {[%emt 0:00:05]} Qf2 {[%emt 0:01:12] White must now
prevent ...Bb7.} 45. Nc2 {[%emt 0:05:45]} (45. Qe4 $142 Qf4+ 46. Qxf4 Rxf4 47.
Nc2) 45... Re8 {[%emt 0:03:51]} 46. Bg6 {[%emt 0:00:52] [#]} Bb7 $1 {[%emt 0:
00:00][%csl Gb7][%cal Rf2g2]} 47. Qg4 {[%emt 0:04:02]} (47. Nxe3 Qxe3) 47...
Rd8 {[%emt 0:02:07]} 48. Qg3 {[%emt 0:00:38]} Qxg3+ {[%emt 0:02:36]} 49. Kxg3 {
[%emt 0:00:10] Endgame KRB-KBN} e2 {[%emt 0:00:02]} 50. Bh5 {[%emt 0:10:56]}
Rd2 {[%emt 0:00:47]} 51. Ne1 {[%emt 0:00:07]} Bc6 {[%emt 0:00:00]} 52. Kf2 {
[%emt 0:03:18]} Bxa4 {[%emt 0:00:23]} 53. Ke3 {[%emt 0:00:13]} Ra2 {[%emt 0:00:
33]} 54. Bxe2 {[%emt 0:00:11]} g6 {[%emt 0:00:07]} 55. Nf3 {[%emt 0:04:16]} Kg7
{[%emt 0:00:10]} 56. Nd4 {[%emt 0:00:47]} Kf6 {[%emt 0:00:00]} 57. Bf3 $2 {
[%emt 0:00:20]} (57. h4 {is a better defense.}) 57... Bd7 {[%emt 0:01:00]} 58.
Ne2 $2 {[%emt 0:00:36]} (58. Be2) 58... Ke5 {[%emt 0:00:44]} 59. Nf4 {[%emt 0:
00:45]} Bf5 {[%emt 0:00:12]} 60. Ne2 {[%emt 0:00:23]} Ra3+ {[%emt 0:00:15]} 61.
Kf2 {[%emt 0:00:11]} Bd3 {[%emt 0:00:29]} 62. Ng1 {[%emt 0:00:00]} Bc4 {
[%emt 0:00:11]} 63. h4 {[%emt 0:00:51]} Ra1 {[%emt 0:00:21]} 64. Nh3 {[%emt 0:
00:10]} Be6 {[%emt 0:01:35] ( -> ...Bxh3)} 65. Kg3 {[%emt 0:00:55]} (65. Ng1
$19) 65... Bxh3 {[%emt 0:00:59]} 66. Kxh3 {[%emt 0:00:05] [#]} Kf4 $1 {[%emt 0:
00:04][%cal Ra1h1]} 67. Kh2 {[%emt 0:00:05]} Rb1 {[%emt 0:02:23]} 68. Bc6 {
[%emt 0:00:27]} Kg4 {[%emt 0:00:00]} (68... Rb2 $142 69. Kh3 Rb3+ 70. Kh2 g5
71. Bd5 Rd3 72. Bc4 Rc3 73. Bd5 Rd3 74. Bb7 g4 75. g3+ Rxg3 76. h5 Rh3+ 77. Kg2
Rxh5 78. Bc6 g3 79. Kf1 Rh2 80. Bd7 h5 81. Be6 h4 82. Kg1 h3 83. Kf1 Rf2+ 84.
Ke1 h2 85. Bd5 Ke3 86. Bh1 g2 87. Bxg2 Rxg2 88. Kf1 h1=Q#) 69. Be8 {[%emt 0:01:
27]} Rb6 {[%emt 0:00:15] Weighted Error Value: White=0.63/Black=0.42} (69... g5
$142 70. Bd7+ Kxh4 71. g3+ Kh5) 0-1

[Event "44th Chess Olympiad Open 2022"]
[Site "Chennai"]
[Date "2022.08.03"]
[Round "6.26"]
[White "Perez Gormaz, Matias"]
[Black "Castro Silva, Moises Antonio"]
[Result "1-0"]
[WhiteElo "2387"]
[BlackElo "2237"]
[Annotator "TA"]
[PlyCount "51"]
[EventDate "2022.??.??"]
[TimeControl "60"]

{[%evp 9,51,6,0,4,28,25,29,-16,0,0,0,-18,0,-4,0,-43,-22,-21,-21,-37,-46,-62,
-62,-110,0,-6,0,0,50,15,161,161,151,138,1054,1039,987,951,1451,1341,1708,1630,
1823,1716]} 1. e4 {[%emt 0:00:24]} c5 {[%emt 0:00:12]} 2. Nf3 {[%emt 0:00:08]}
e6 {[%emt 0:00:12]} 3. b3 {[%emt 0:01:13]} b6 {[%emt 0:02:55]} 4. d4 {[%emt 0:
00:00]} cxd4 {[%emt 0:03:53]} 5. Nxd4 {[%emt 0:00:11]} Bb7 {[%emt 0:00:29]} 6.
Nd2 {[%emt 0:00:18] B40: Sicilian: 2...e6, Unusual lines.} Bb4 {[%emt 0:09:00]}
7. Bb2 {[%emt 0:00:46]} Nf6 {[%emt 0:04:25] [#]} 8. a3 $146 {[%emt 0:13:12]
White has an edge.} (8. c3 $5 {[%cal Rc3b4]} Bc5 9. Bd3 $11) ({Predecessor:} 8.
c3 Bc5 9. Bd3 Nc6 10. O-O O-O 11. Qe2 Bxd4 12. cxd4 Nb4 13. Bb1 Ba6 14. Nc4 {
0-1 (25) Wieczorek,O (2505)-Kuzmicz,K (2469) Warsaw 2022}) 8... Bxd2+ {[%emt 0:
00:00]} 9. Qxd2 {[%emt 0:00:06]} Nxe4 {[%emt 0:00:08]} 10. Qe3 {[%emt 0:00:14]}
O-O {[%emt 0:01:11]} 11. O-O-O $1 {[%emt 0:12:31]} d5 {[%emt 0:15:18]} 12. f3 {
[%emt 0:05:49]} Nd6 {[%emt 0:12:43]} 13. Qe5 {[%emt 0:24:12][%cal Yd4c6] [#]
Strongly threatening Nc6!} Ne8 {[%emt 0:01:11]} 14. h4 {[%emt 0:01:14][%cal
Yh2h4,Yh4h5]} Nd7 {[%emt 0:01:22]} 15. Qg3 {[%emt 0:01:58]} Qc7 {[%emt 0:17:27]
} 16. Qf2 {[%emt 0:01:56]} (16. Qxc7 $15 Nxc7 17. h5) 16... Nef6 {[%emt 0:01:
46]} (16... e5 $17 17. Nf5 Nc5) 17. h5 $11 {[%emt 0:01:50]} h6 {[%emt 0:01:25]}
18. Kb1 {[%emt 0:00:10]} a6 {[%emt 0:00:52]} (18... Kh8 $11) 19. g4 $1 $14 {
[%emt 0:00:18][%cal Yg2g4,Yg4g5]} Nc5 {[%emt 0:01:31] [#]} (19... Rae8 $11) 20.
g5 $1 $18 {[%emt 0:16:04]} hxg5 {[%emt 0:00:11]} 21. h6 {[%emt 0:00:18]} gxh6 {
[%emt 0:02:19] Black cannot hold the game after this.} (21... g6 $16) 22. Rxh6
{[%emt 0:01:41] White is clearly winning.} Nh7 {[%emt 0:00:57]} 23. b4 {
[%emt 0:04:31]} Rae8 {[%emt 0:00:35]} 24. bxc5 {[%emt 0:00:08]} bxc5 {[%emt 0:
00:06]} 25. Bd3 {[%emt 0:00:07]} f5 {[%emt 0:00:00]} 26. Rg6+ {[%emt 0:00:48]
Weighted Error Value: White=0.09 (flawless) / Black=0.41} 1-0

[Event "44th Chess Olympiad Open 2022"]
[Site "Chennai"]
[Date "2022.08.03"]
[Round "6.26"]
[White "Rohl Montes, Juan Armando"]
[Black "Henriquez Villagra, Cristobal"]
[Result "0-1"]
[WhiteElo "2382"]
[BlackElo "2620"]
[Annotator "TA"]
[PlyCount "88"]
[EventDate "2022.??.??"]
[TimeControl "60"]

{[%evp 9,88,10,21,25,27,26,36,14,24,18,35,35,17,8,10,10,13,25,24,16,20,18,29,
17,23,6,53,54,87,60,62,57,61,40,50,50,60,62,67,-11,1,-22,-30,-39,-35,-35,-35,
-35,-35,-33,-25,-29,-24,-21,-30,-52,-64,-78,-95,-72,-65,-76,-59,-91,-84,-75,
-83,-91,-81,-183,-178,-205,-172,-170,-165,-392,-391,-1354,-1317,-1247,-1109]} 
1. e4 {[%emt 0:00:45]} c6 {[%emt 0:00:37]} 2. d4 {[%emt 0:00:46]} d5 {[%emt 0:
00:00]} 3. Nd2 {[%emt 0:00:41][%cal Yb1d2,Yd2e4,Ye4g5,Yg5e6]} dxe4 {[%emt 0:00:
24]} 4. Nxe4 {[%emt 0:00:09]} Nd7 {[%emt 0:00:06]} 5. Ng5 {[%emt 0:00:00]} h6 {
[%emt 0:00:53] [#]} 6. Ne6 {[%emt 0:01:01] B17: Caro-Kann: Modern Line (4...
Nd7).} Qb6 {[%emt 0:00:16] 6...Qa5+ is not played anymore.} 7. Nxf8 {[%emt 0:
01:46]} Nxf8 {[%emt 0:00:07]} 8. c3 {[%emt 0:02:23] White is slightly better.}
Bf5 {[%emt 0:06:36]} 9. Nf3 {[%emt 0:06:10]} Ng6 {[%emt 0:05:18]} 10. Be2 {
[%emt 0:15:55]} Nf6 {[%emt 0:03:13]} 11. O-O {[%emt 0:02:04]} O-O {[%emt 0:01:
33]} 12. Re1 {[%emt 0:02:54]} Rad8 {[%emt 0:01:59]} 13. Qb3 {[%emt 0:02:37]}
Qc7 {[%emt 0:00:56]} 14. Bf1 {[%emt 0:05:59]} Rfe8 {[%emt 0:00:00]} 15. h3 {
[%emt 0:07:23] [#]} e6 $146 {[%emt 0:26:35]} ({Predecessor:} 15... Be4 16. Nd2
Bd5 17. Qc2 c5 18. dxc5 Qxc5 19. Nb3 Qc7 20. Be3 Nh4 21. Rad1 a6 {1-0 (92)
Howell,D (2658)-Van Foreest,J (2701) chess24.com INT 2021}) 16. a4 {[%emt 0:05:
27]} b6 {[%emt 0:03:46]} 17. Be3 {[%emt 0:03:16]} Nf4 {[%emt 0:00:00]} (17...
Nd5 $11) 18. c4 $14 {[%emt 0:05:56]} g5 {[%emt 0:06:47]} 19. Ne5 {[%emt 0:04:
25]} c5 {[%emt 0:06:39]} 20. Rad1 $1 {[%emt 0:09:30]} Ne4 {[%emt 0:00:00]} 21.
Bxf4 {[%emt 0:03:43]} gxf4 {[%emt 0:00:00]} 22. Qf3 {[%emt 0:00:28]} Ng5 {
[%emt 0:00:35][%cal Ye4g5,Yg5f3,Yf3e1]} 23. Qc6 {[%emt 0:04:27]} Qe7 {[%emt 0:
00:50]} 24. d5 {[%emt 0:00:58]} (24. dxc5 $1 $14 f6 25. Nd3) 24... f6 $132 {
[%emt 0:00:36] Black has counterplay} 25. Nd3 {[%emt 0:04:40]} (25. Ng4 $5 {
[%cal Rg4h6]} Kg7 26. a5 $11) 25... Rc8 {[%emt 0:00:00]} 26. Qb5 {[%emt 0:00:
36]} Qg7 {[%emt 0:00:05]} 27. Nxf4 {[%emt 0:01:33] [#] aiming for Re3.} Nf3+ $1
{[%emt 0:01:34]} 28. Kh1 {[%emt 0:00:05]} Nxe1 {[%emt 0:00:03]} 29. Rxe1 {
[%emt 0:00:12][%cal Rd5e6]} e5 {[%emt 0:00:44][%cal Ya7a6]} 30. Nh5 {[%emt 0:
00:15]} Qf7 {[%emt 0:01:10]} 31. Ng3 {[%emt 0:00:55]} Bg6 {[%emt 0:00:11]} 32.
Kg1 {[%emt 0:03:24]} f5 {[%emt 0:01:07]} 33. Qb3 {[%emt 0:00:04]} e4 {[%emt 0:
00:20]} 34. Ne2 {[%emt 0:00:53]} f4 {[%emt 0:01:55] Against Qe3. Black is more
active.} 35. g3 $1 {[%emt 0:00:28]} fxg3 {[%emt 0:00:00]} 36. Nxg3 {[%emt 0:01:
02]} e3 {[%emt 0:02:24]} 37. Rxe3 {[%emt 0:00:18]} Rf8 {[%emt 0:00:01]} 38. Nh1
{[%emt 0:02:19]} Rce8 {[%emt 0:00:26]} 39. Bg2 {[%emt 0:00:11]} (39. Rg3 $17
Kh7 40. Bd3 Bxd3 41. Qxd3+ Qf5 42. Kf1 (42. Qc3 Rf7 $17)) 39... Qf4 $19 {
[%emt 0:00:25]} 40. Qc3 {[%emt 0:01:57]} Rxe3 {[%emt 0:01:18]} 41. fxe3 {
[%emt 0:30:10]} Qg5 {[%emt 0:31:44] Threatens to win with ...Be4.} 42. Kh2 $2 {
[%emt 0:00:17]} (42. Nf2 {is the only way for White.}) 42... Re8 {[%emt 0:00:
16]} 43. d6 $2 {[%emt 0:00:00]} (43. e4 Bxe4 44. Bf1) 43... Rxe3 {[%emt 0:00:
00]} 44. Bd5+ {[%emt 0:00:00]} Kh7 {[%emt 0:00:00] Weighted Error Value:
White=0.34/Black=0.05 (flawless)} 0-1

[Event "44th Chess Olympiad Open 2022"]
[Site "Chennai"]
[Date "2022.08.03"]
[Round "6.26"]
[White "Escalona Landi, Samid Eduardo"]
[Black "Salinas Herrera, Pablo"]
[Result "1-0"]
[WhiteElo "2191"]
[BlackElo "2526"]
[Annotator "TA"]
[PlyCount "53"]
[EventDate "2022.??.??"]
[TimeControl "60"]

{[%evp 19,53,0,0,-15,0,-11,-7,-5,-8,-19,34,18,28,32,100,66,103,112,146,156,163,
138,175,182,180,164,212,192,429,393,391,381,487,493,480,474]} 1. Nf3 {[%emt 0:
00:00]} Nf6 {[%emt 0:00:29]} 2. g3 {[%emt 0:00:18]} d5 {[%emt 0:01:53]} 3. c4 {
[%emt 0:00:18]} e6 {[%emt 0:00:13]} 4. b3 {[%emt 0:00:08]} d4 {[%emt 0:03:17]}
5. Bg2 {[%emt 0:00:16]} c5 {[%emt 0:09:21]} 6. e3 {[%emt 0:01:18]} Nc6 {
[%emt 0:00:08]} 7. exd4 {[%emt 0:00:04]} cxd4 {[%emt 0:00:08]} 8. O-O {[%emt 0:
00:00]} Be7 {[%emt 0:01:18]} 9. Re1 {[%emt 0:00:17]} O-O {[%emt 0:00:07]} 10.
d3 {[%emt 0:01:12]} Nd7 {[%emt 0:02:03]} 11. Ba3 {[%emt 0:15:51] A14: English
Opening: 1...e6 with b3 by White.} e5 {[%emt 0:19:21]} 12. b4 {[%emt 0:03:17]}
Bxb4 {[%emt 0:19:05]} 13. Bxb4 {[%emt 0:02:32] The position is equal.} Nxb4 {
[%emt 0:00:05]} 14. Nxe5 {[%emt 0:00:09]} Nxe5 {[%emt 0:00:13]} (14... Nc5 $11)
15. Rxe5 $14 {[%emt 0:00:07]} Qd6 {[%emt 0:00:10]} 16. Rb5 {[%emt 0:00:48]} Re8
{[%emt 0:03:47]} ({Better is} 16... Qe7 $14) 17. Nd2 $16 {[%emt 0:03:17][%cal
Yb1d2,Yd2e4,Ye4d6] Hoping for c5.} ({Stronger than} 17. Bxb7 Bxb7 18. Rxb7 Nxd3
$1 $17) ({Don't play} 17. c5 Qe7 18. Na3 (18. Rxb4 $2 Qe1+ 19. Qxe1 Rxe1+ 20.
Bf1 a5 $19) 18... Nc6 $14) 17... Nc6 {[%emt 0:03:49] [#]} (17... Nxd3 $2 18.
Ne4 Rxe4 19. Bxe4 $18) 18. Ne4 $146 {[%emt 0:17:59]} ({Predecessor:} 18. Rab1
Qg6 19. Be4 Qh6 20. Rh5 Qf6 21. Bxh7+ Kf8 22. Ne4 Qd8 23. Rd5 Qc7 24. Nd6 {
1-0 (32) Jones,G (2665)-Bacrot,E (2695) Chess.com INT 2017}) 18... Qe7 {
[%emt 0:00:07] [#]} 19. c5 $1 {[%emt 0:01:04] White is more active.} Qc7 {
[%emt 0:04:21]} 20. Rab1 {[%emt 0:01:49] Strongly threatening Nd6.} Nd8 {
[%emt 0:07:00]} 21. Nd6 {[%emt 0:02:54]} Re5 {[%emt 0:00:11]} 22. Qa4 {[%emt 0:
20:32]} a6 {[%emt 0:05:23]} (22... Qe7 $142) 23. Qxd4 $18 {[%emt 0:12:22]} Re7
{[%emt 0:02:37]} (23... Nc6 24. Qa4 Rb8) 24. R5b2 {[%emt 0:00:00]} Ne6 {
[%emt 0:00:15]} 25. Qd5 {[%emt 0:00:04][%cal Rb2b7] Black must now prevent
Rxb7.} Qxc5 {[%emt 0:01:11]} 26. Qxc5 {[%emt 0:00:20]} Nxc5 {[%emt 0:00:04]}
27. Rc2 {[%emt 0:00:49] Black did not feel at home in the position after the
opening. Weighted Error Value: White=0.08 (flawless) / Black=0.40} 1-0